[Event "December 19 Early 2023"]
[Site "https://www.chess.com"]
[Date "2023.12.19"]
[Round "7"]
[White "Garcia Ramos, Daniel"]
[Black "Bluebaum, Matthias"]
[Result "1-0"]
[Board "20"]
[TimeControl "180+1"]
[WhiteFideId "32010311"]
[BlackFideId "24651516"]
[WhiteElo "2363"]
[BlackElo "2621"]
[WhiteTeam "ESP"]
[BlackTeam "GER"]
[WhiteClock "0:00:15"]
[BlackClock "0:00:20"]

1. Nf3 {[%clk 0:03:00]}  d5 {[%clk 0:03:00]} 2. b3 {[%clk 0:03:00]}  e6 {[%clk 0:03:00]} 3. Bb2 {[%clk 0:03:01]}  Nf6 {[%clk 0:03:01]} 4. g3 {[%clk 0:03:01]}  Bd6 {[%clk 0:03:01]} 5. Bg2 {[%clk 0:03:02]}  O-O {[%clk 0:03:02]} 6. O-O {[%clk 0:03:03]}  Nc6 {[%clk 0:03:03]} 7. d4 {[%clk 0:03:03]}  a5 {[%clk 0:03:02]} 8. a3 {[%clk 0:03:00]}  b6 {[%clk 0:02:57]} 9. Nbd2 {[%clk 0:03:00]}  Bb7 {[%clk 0:02:54]} 10. Re1 {[%clk 0:03:01]}  Ne7 {[%clk 0:02:54]} 11. c4 {[%clk 0:02:59]}  a4 {[%clk 0:02:50]} 12. b4 {[%clk 0:02:59]}  dxc4 {[%clk 0:02:49]} 13. Nxc4 {[%clk 0:02:59]}  Ng6 {[%clk 0:02:46]} 14. Rc1 {[%clk 0:02:57]}  Qe7 {[%clk 0:02:44]} 15. Nce5 {[%clk 0:02:41]}  Rfc8 {[%clk 0:02:23]} 16. Nc6 {[%clk 0:02:37]}  Qe8 {[%clk 0:02:23]} 17. Nfe5 {[%clk 0:02:33]}  Bxe5 {[%clk 0:02:10]} 18. dxe5 {[%clk 0:02:29]}  Nd5 {[%clk 0:02:11]} 19. Bxd5 {[%clk 0:02:14]}  exd5 {[%clk 0:02:12]} 20. Qxd5 {[%clk 0:02:14]}  Kh8 {[%clk 0:02:10]} 21. Red1 {[%clk 0:02:09]}  Ne7 {[%clk 0:02:09]} 22. Nxe7 {[%clk 0:01:54]}  Bxd5 {[%clk 0:02:07]} 23. Nxd5 {[%clk 0:01:55]}  Rab8 {[%clk 0:01:55]} 24. e4 {[%clk 0:01:40]}  c6 {[%clk 0:01:53]} 25. Nf4 {[%clk 0:01:38]}  c5 {[%clk 0:01:53]} 26. e6 {[%clk 0:01:32]}  fxe6 {[%clk 0:01:53]} 27. Be5 {[%clk 0:01:30]}  cxb4 {[%clk 0:01:48]} 28. axb4 {[%clk 0:01:21]}  Rxc1 {[%clk 0:01:47]} 29. Rxc1 {[%clk 0:01:21]}  a3 {[%clk 0:01:47]} 30. Rc7 {[%clk 0:01:16]}  a2 {[%clk 0:01:08]} 31. Bxg7+ {[%clk 0:00:41]}  Kg8 {[%clk 0:01:08]} 32. Be5 {[%clk 0:00:30]}  Rc8 {[%clk 0:00:21]} 33. Rg7+ {[%clk 0:00:25]}  Kf8 {[%clk 0:00:22]} 34. Rxh7 {[%clk 0:00:23]}  Rc1+ {[%clk 0:00:22]} 35. Kg2 {[%clk 0:00:24]}  Qc6 {[%clk 0:00:23]} 36. Ng6+ {[%clk 0:00:18]}  Ke8 {[%clk 0:00:23]} 37. Rh8+ {[%clk 0:00:12]}  Kd7 {[%clk 0:00:24]} 38. Rh7+ {[%clk 0:00:11]}  Kc8 {[%clk 0:00:24]} 39. Ne7+ {[%clk 0:00:11]}  Kb7 {[%clk 0:00:19]} 40. Nxc6+ {[%clk 0:00:11]}  Kxc6 {[%clk 0:00:19]} 41. Ra7 {[%clk 0:00:11]}  Rc2 {[%clk 0:00:20]} 42. h4 {[%clk 0:00:11]}  Kb5 {[%clk 0:00:20]} 43. h5 {[%clk 0:00:11]}  Kxb4 {[%clk 0:00:15]} 44. h6 {[%clk 0:00:11]}  Rc5 {[%clk 0:00:16]} 45. h7 {[%clk 0:00:11]}  Rxe5 {[%clk 0:00:14]} 46. h8=Q {[%clk 0:00:11]}  Ra5 {[%clk 0:00:14]} 47. Qb2+ {[%clk 0:00:10]}  Ka4 {[%clk 0:00:14]} 48. Rxa5+ {[%clk 0:00:10]}  Kxa5 {[%clk 0:00:15]} 49. Qxa2+ {[%clk 0:00:11]}  Kb4 {[%clk 0:00:15]} 50. Qxe6 {[%clk 0:00:12]}  Kc3 {[%clk 0:00:16]} 51. Qd5 {[%clk 0:00:12]}  Kc2 {[%clk 0:00:16]} 52. e5 {[%clk 0:00:13]}  Kc1 {[%clk 0:00:17]} 53. e6 {[%clk 0:00:13]}  b5 {[%clk 0:00:18]} 54. e7 {[%clk 0:00:14]}  b4 {[%clk 0:00:19]} 55. e8=Q {[%clk 0:00:15]}  b3 {[%clk 0:00:20]} 56. Qe2 {[%clk 0:00:15]}  b2 {[%clk 0:00:20]} 57. Qdd1# {[%clk 0:00:15]} 1-0

[Event "December 19 Early 2023"]
[Site "https://www.chess.com"]
[Date "2023.12.19"]
[Round "7"]
[White "Demchenko, Anton"]
[Black "Matinian, Nikita"]
[Result "1/2-1/2"]
[Board "23"]
[TimeControl "180+1"]
[WhiteFideId "4160258"]
[BlackFideId "24129100"]
[WhiteElo "2545"]
[BlackElo "2417"]
[WhiteTeam "SLO"]
[BlackTeam "FID"]
[WhiteClock "0:00:02"]
[BlackClock "0:00:02"]

1. e4 {[%clk 0:03:00]}  c5 {[%clk 0:03:00]} 2. Nc3 {[%clk 0:03:00]}  Nc6 {[%clk 0:03:01]} 3. Bb5 {[%clk 0:03:01]}  Nd4 {[%clk 0:03:01]} 4. a4 {[%clk 0:03:01]}  a6 {[%clk 0:03:00]} 5. Bc4 {[%clk 0:03:01]}  e6 {[%clk 0:03:00]} 6. d3 {[%clk 0:03:02]}  Nf6 {[%clk 0:02:58]} 7. Nf3 {[%clk 0:03:02]}  Nc6 {[%clk 0:02:49]} 8. O-O {[%clk 0:02:59]}  d6 {[%clk 0:02:45]} 9. d4 {[%clk 0:02:58]}  cxd4 {[%clk 0:02:42]} 10. Nxd4 {[%clk 0:02:59]}  Be7 {[%clk 0:02:43]} 11. Nxc6 {[%clk 0:02:57]}  bxc6 {[%clk 0:02:43]} 12. a5 {[%clk 0:02:58]}  d5 {[%clk 0:02:42]} 13. Bd3 {[%clk 0:02:58]}  O-O {[%clk 0:02:38]} 14. Bd2 {[%clk 0:02:45]}  e5 {[%clk 0:02:38]} 15. Re1 {[%clk 0:02:41]}  d4 {[%clk 0:02:35]} 16. Na4 {[%clk 0:02:40]}  c5 {[%clk 0:02:28]} 17. Nb6 {[%clk 0:02:35]}  Ra7 {[%clk 0:02:28]} 18. Qe2 {[%clk 0:02:35]}  Bg4 {[%clk 0:01:57]} 19. Qf1 {[%clk 0:02:32]}  Nd7 {[%clk 0:01:49]} 20. Nd5 {[%clk 0:02:25]}  Nb8 {[%clk 0:01:41]} 21. f4 {[%clk 0:02:24]}  exf4 {[%clk 0:01:37]} 22. Bxf4 {[%clk 0:02:12]}  Bh4 {[%clk 0:01:26]} 23. g3 {[%clk 0:01:59]}  Bg5 {[%clk 0:01:26]} 24. h4 {[%clk 0:01:49]}  Bxf4 {[%clk 0:01:26]} 25. Qxf4 {[%clk 0:01:45]}  Be6 {[%clk 0:01:26]} 26. b4 {[%clk 0:01:23]}  cxb4 {[%clk 0:00:58]} 27. Nxb4 {[%clk 0:01:23]}  Qc8 {[%clk 0:00:45]} 28. Nd5 {[%clk 0:01:11]}  Nc6 {[%clk 0:00:39]} 29. Reb1 {[%clk 0:01:08]}  Ne7 {[%clk 0:00:22]} 30. Nxe7+ {[%clk 0:00:48]}  Rxe7 {[%clk 0:00:23]} 31. Rb6 {[%clk 0:00:48]}  Bc4 {[%clk 0:00:23]} 32. Qd6 {[%clk 0:00:44]}  Bxd3 {[%clk 0:00:10]} 33. Qxe7 {[%clk 0:00:44]}  Bxc2 {[%clk 0:00:06]} 34. Qd6 {[%clk 0:00:35]}  Rd8 {[%clk 0:00:06]} 35. Rc6 {[%clk 0:00:31]}  Qa8 {[%clk 0:00:05]} 36. Qe7 {[%clk 0:00:25]}  d3 {[%clk 0:00:04]} 37. Rxa6 {[%clk 0:00:12]}  Qb8 {[%clk 0:00:03]} 38. Kh2 {[%clk 0:00:13]}  d2 {[%clk 0:00:02]} 39. Rb6 {[%clk 0:00:13]}  Qc8 {[%clk 0:00:02]} 40. Rc6 {[%clk 0:00:12]}  Qa8 {[%clk 0:00:01]} 41. Rxc2 {[%clk 0:00:13]}  d1=Q {[%clk 0:00:02]} 42. Rxd1 {[%clk 0:00:13]}  Rxd1 {[%clk 0:00:03]} 43. Rf2 {[%clk 0:00:14]}  f6 {[%clk 0:00:02]} 44. Qe6+ {[%clk 0:00:13]}  Kh8 {[%clk 0:00:02]} 45. Rc2 {[%clk 0:00:11]}  Rd8 {[%clk 0:00:01]} 46. a6 {[%clk 0:00:12]}  Qa7 {[%clk 0:00:01]} 47. Kh3 {[%clk 0:00:09]}  Qg1 {[%clk 0:00:01]} 48. Rc8 {[%clk 0:00:04]}  Qh1+ {[%clk 0:00:01]} 49. Kg4 {[%clk 0:00:05]}  Qd1+ {[%clk 0:00:01]} 50. Kf4 {[%clk 0:00:03]}  Qd2+ {[%clk 0:00:01]} 51. Kf3 {[%clk 0:00:04]}  Qd1+ {[%clk 0:00:01]} 52. Kf2 {[%clk 0:00:04]}  Qd2+ {[%clk 0:00:01]} 53. Kf3 {[%clk 0:00:04]}  Qd1+ {[%clk 0:00:02]} 54. Kg2 {[%clk 0:00:04]}  Qe2+ {[%clk 0:00:02]} 55. Kh3 {[%clk 0:00:05]}  Qf1+ {[%clk 0:00:02]} 56. Kg4 {[%clk 0:00:06]}  Qd1+ {[%clk 0:00:02]} 57. Kh3 {[%clk 0:00:03]}  Qf1+ {[%clk 0:00:02]} 58. Kg4 {[%clk 0:00:02]}  Qd1+ {[%clk 0:00:02]} 1/2-1/2

[Event "December 19 Early 2023"]
[Site "https://www.chess.com"]
[Date "2023.12.19"]
[Round "7"]
[White "Svane, Frederik"]
[Black "Pakleza, Zbigniew"]
[Result "0-1"]
[Board "25"]
[TimeControl "180+1"]
[WhiteFideId "12923044"]
[BlackFideId "1119290"]
[WhiteElo "2502"]
[BlackElo "2410"]
[WhiteTeam "GER"]
[BlackTeam "POL"]
[WhiteClock "0:01:07"]
[BlackClock "0:01:38"]

1. g3 {[%clk 0:03:00]}  d5 {[%clk 0:02:59]} 2. Bg2 {[%clk 0:02:57]}  Nf6 {[%clk 0:03:00]} 3. f4 {[%clk 0:02:57]}  c5 {[%clk 0:03:00]} 4. Nf3 {[%clk 0:02:57]}  Nc6 {[%clk 0:03:00]} 5. O-O {[%clk 0:02:58]}  e6 {[%clk 0:03:01]} 6. d3 {[%clk 0:02:58]}  b5 {[%clk 0:03:01]} 7. Nbd2 {[%clk 0:02:57]}  Be7 {[%clk 0:02:57]} 8. e4 {[%clk 0:02:57]}  O-O {[%clk 0:02:57]} 9. c3 {[%clk 0:02:49]}  a5 {[%clk 0:02:56]} 10. Qe2 {[%clk 0:02:46]}  Ba6 {[%clk 0:02:56]} 11. e5 {[%clk 0:02:40]}  Nd7 {[%clk 0:02:56]} 12. Kh1 {[%clk 0:02:37]}  a4 {[%clk 0:02:53]} 13. a3 {[%clk 0:02:34]}  b4 {[%clk 0:02:46]} 14. axb4 {[%clk 0:02:32]}  cxb4 {[%clk 0:02:47]} 15. c4 {[%clk 0:01:57]}  Nb6 {[%clk 0:02:41]} 16. g4 {[%clk 0:01:45]}  Na5 {[%clk 0:02:22]} 17. cxd5 {[%clk 0:01:35]}  Nxd5 {[%clk 0:02:12]} 18. Nc4 {[%clk 0:01:32]}  Nb3 {[%clk 0:01:52]} 19. Rxa4 {[%clk 0:01:29]}  Nxc1 {[%clk 0:01:48]} 20. Rxc1 {[%clk 0:01:27]}  Nxf4 {[%clk 0:01:48]} 21. Qe4 {[%clk 0:01:27]}  Nxd3 {[%clk 0:01:43]} 22. Rf1 {[%clk 0:01:07]}  Nc5 {[%clk 0:01:38]} 0-1

[Event "December 19 Early 2023"]
[Site "https://www.chess.com"]
[Date "2023.12.19"]
[Round "7"]
[White "Krzyzanowski, Marcin"]
[Black "Mahdavi, Reza"]
[Result "1-0"]
[Board "26"]
[TimeControl "180+1"]
[WhiteFideId "1132199"]
[BlackFideId "12595926"]
[WhiteElo "2471"]
[BlackElo "2426"]
[WhiteTeam "POL"]
[BlackTeam "IRI"]
[WhiteClock "0:00:05"]
[BlackClock "0:00:01"]

1. e4 {[%clk 0:03:00]}  c5 {[%clk 0:03:00]} 2. Nf3 {[%clk 0:03:01]}  d6 {[%clk 0:02:59]} 3. d4 {[%clk 0:03:01]}  cxd4 {[%clk 0:03:00]} 4. Nxd4 {[%clk 0:03:01]}  Nf6 {[%clk 0:03:00]} 5. Nc3 {[%clk 0:03:02]}  a6 {[%clk 0:03:01]} 6. Be2 {[%clk 0:03:03]}  e5 {[%clk 0:03:01]} 7. Nb3 {[%clk 0:03:03]}  Be7 {[%clk 0:03:01]} 8. O-O {[%clk 0:03:02]}  Be6 {[%clk 0:03:01]} 9. f4 {[%clk 0:02:59]}  exf4 {[%clk 0:03:01]} 10. Bxf4 {[%clk 0:03:00]}  Nc6 {[%clk 0:02:59]} 11. Qd3 {[%clk 0:02:48]}  O-O {[%clk 0:02:56]} 12. Rad1 {[%clk 0:02:48]}  Ne5 {[%clk 0:02:53]} 13. Qg3 {[%clk 0:02:47]}  Qc7 {[%clk 0:02:52]} 14. Nd4 {[%clk 0:02:45]}  Kh8 {[%clk 0:02:49]} 15. Kh1 {[%clk 0:02:35]}  b5 {[%clk 0:02:49]} 16. a3 {[%clk 0:02:33]}  Rab8 {[%clk 0:02:48]} 17. Nf5 {[%clk 0:01:58]}  Bxf5 {[%clk 0:02:48]} 18. exf5 {[%clk 0:01:58]}  b4 {[%clk 0:02:48]} 19. axb4 {[%clk 0:01:58]}  Rxb4 {[%clk 0:02:49]} 20. Bc1 {[%clk 0:01:49]}  Ne4 {[%clk 0:02:41]} 21. Nxe4 {[%clk 0:01:49]}  Rxe4 {[%clk 0:02:42]} 22. Bd3 {[%clk 0:01:21]}  Rg4 {[%clk 0:02:39]} 23. Qf2 {[%clk 0:01:05]}  a5 {[%clk 0:02:32]} 24. Bf4 {[%clk 0:01:01]}  Bh4 {[%clk 0:02:18]} 25. Qe2 {[%clk 0:00:58]}  Rxf4 {[%clk 0:01:49]} 26. Rxf4 {[%clk 0:00:58]}  Bf6 {[%clk 0:01:49]} 27. Be4 {[%clk 0:00:54]}  Rb8 {[%clk 0:01:49]} 28. b3 {[%clk 0:00:51]}  h6 {[%clk 0:01:50]} 29. Rff1 {[%clk 0:00:51]}  Rb4 {[%clk 0:01:49]} 30. Bd5 {[%clk 0:00:45]}  a4 {[%clk 0:01:49]} 31. bxa4 {[%clk 0:00:45]}  Rxa4 {[%clk 0:01:50]} 32. c4 {[%clk 0:00:39]}  Qa7 {[%clk 0:01:45]} 33. Rb1 {[%clk 0:00:27]}  Ra2 {[%clk 0:01:45]} 34. Qe4 {[%clk 0:00:27]}  Kh7 {[%clk 0:01:16]} 35. Rb7 {[%clk 0:00:24]}  Ra1 {[%clk 0:01:17]} 36. Rxa1 {[%clk 0:00:19]}  Qxa1+ {[%clk 0:01:18]} 37. Qb1 {[%clk 0:00:20]}  Qd4 {[%clk 0:01:17]} 38. Bxf7 {[%clk 0:00:17]}  h5 {[%clk 0:01:01]} 39. Bg6+ {[%clk 0:00:16]}  Kh6 {[%clk 0:01:01]} 40. Rb8 {[%clk 0:00:07]}  Nd3 {[%clk 0:00:13]} 41. Rh8+ {[%clk 0:00:07]}  Kg5 {[%clk 0:00:14]} 42. Rxh5+ {[%clk 0:00:07]}  Kf4 {[%clk 0:00:15]} 43. Qf1+ {[%clk 0:00:06]}  Ke3 {[%clk 0:00:08]} 44. Rh3+ {[%clk 0:00:04]}  Kd2 {[%clk 0:00:09]} 45. Rf3 {[%clk 0:00:05]}  Kc3 {[%clk 0:00:05]} 46. g3 {[%clk 0:00:05]}  Kxc4 {[%clk 0:00:04]} 47. Kg2 {[%clk 0:00:05]}  Kc3 {[%clk 0:00:04]} 48. Qe1+ {[%clk 0:00:05]}  Kc2 {[%clk 0:00:04]} 49. Qe2+ {[%clk 0:00:05]}  Kc3 {[%clk 0:00:04]} 50. h4 {[%clk 0:00:06]}  Qd5 {[%clk 0:00:01]} 51. Kh3 {[%clk 0:00:06]}  Qd4 {[%clk 0:00:02]} 52. g4 {[%clk 0:00:05]}  Kc4 {[%clk 0:00:02]} 53. g5 {[%clk 0:00:04]}  Be5 {[%clk 0:00:03]} 54. f6 {[%clk 0:00:04]}  gxf6 {[%clk 0:00:04]} 55. Bxd3+ {[%clk 0:00:04]}  Kc5 {[%clk 0:00:05]} 56. Be4 {[%clk 0:00:04]}  fxg5 {[%clk 0:00:05]} 57. Qc2+ {[%clk 0:00:04]}  Qc4 {[%clk 0:00:01]} 58. Qxc4+ {[%clk 0:00:04]}  Kxc4 {[%clk 0:00:01]} 59. hxg5 {[%clk 0:00:05]} 1-0

[Event "December 19 Early 2023"]
[Site "https://www.chess.com"]
[Date "2023.12.19"]
[Round "7"]
[White "Haring, Filip"]
[Black "Jones, Gawain C B"]
[Result "0-1"]
[Board "27"]
[TimeControl "180+1"]
[WhiteFideId "14933080"]
[BlackFideId "409561"]
[WhiteElo "2375"]
[BlackElo "2645"]
[WhiteTeam "SVK"]
[BlackTeam "ENG"]
[WhiteClock "0:00:00"]
[BlackClock "0:00:08"]

1. e4 {[%clk 0:03:00]}  e5 {[%clk 0:02:59]} 2. Nf3 {[%clk 0:03:00]}  Nc6 {[%clk 0:02:59]} 3. Bb5 {[%clk 0:02:57]}  a6 {[%clk 0:02:59]} 4. Ba4 {[%clk 0:02:57]}  Nf6 {[%clk 0:03:00]} 5. O-O {[%clk 0:02:58]}  d6 {[%clk 0:03:00]} 6. d3 {[%clk 0:02:46]}  g6 {[%clk 0:02:55]} 7. c3 {[%clk 0:02:45]}  Bg7 {[%clk 0:02:55]} 8. h3 {[%clk 0:02:45]}  O-O {[%clk 0:02:55]} 9. Nbd2 {[%clk 0:02:45]}  Nh5 {[%clk 0:02:51]} 10. Bb3 {[%clk 0:02:37]}  Kh8 {[%clk 0:02:48]} 11. Re1 {[%clk 0:02:29]}  Qe8 {[%clk 0:02:35]} 12. Nf1 {[%clk 0:02:25]}  f5 {[%clk 0:02:35]} 13. Ng3 {[%clk 0:02:07]}  f4 {[%clk 0:02:18]} 14. Nxh5 {[%clk 0:01:58]}  gxh5 {[%clk 0:02:19]} 15. d4 {[%clk 0:01:52]}  Bf6 {[%clk 0:02:16]} 16. dxe5 {[%clk 0:01:49]}  dxe5 {[%clk 0:02:15]} 17. Kh2 {[%clk 0:01:33]}  Na5 {[%clk 0:02:15]} 18. Bc2 {[%clk 0:01:17]}  Be6 {[%clk 0:02:14]} 19. b4 {[%clk 0:01:06]}  Rd8 {[%clk 0:02:14]} 20. Nd2 {[%clk 0:01:00]}  Nc4 {[%clk 0:02:12]} 21. Qe2 {[%clk 0:00:33]}  Nxd2 {[%clk 0:02:04]} 22. Bxd2 {[%clk 0:00:34]}  Bc4 {[%clk 0:01:22]} 23. Qxc4 {[%clk 0:00:34]}  Rxd2 {[%clk 0:01:22]} 24. Bb3 {[%clk 0:00:21]}  Bh4 {[%clk 0:01:21]} 25. Rad1 {[%clk 0:00:16]}  Rxf2 {[%clk 0:01:06]} 26. Rf1 {[%clk 0:00:12]}  c6 {[%clk 0:00:37]} 27. Qc5 {[%clk 0:00:07]}  Re2 {[%clk 0:00:34]} 28. Bc4 {[%clk 0:00:05]}  Rxe4 {[%clk 0:00:32]} 29. Bd3 {[%clk 0:00:04]}  Re3 {[%clk 0:00:32]} 30. Qd6 {[%clk 0:00:03]}  Rg8 {[%clk 0:00:28]} 31. Qc7 {[%clk 0:00:02]}  Rg7 {[%clk 0:00:25]} 32. Qd6 {[%clk 0:00:02]}  Rxg2+ {[%clk 0:00:13]} 33. Kxg2 {[%clk 0:00:02]}  Qg8+ {[%clk 0:00:14]} 34. Bg6 {[%clk 0:00:02]}  Qxg6+ {[%clk 0:00:12]} 35. Qxg6 {[%clk 0:00:02]}  hxg6 {[%clk 0:00:13]} 36. Rf3 {[%clk 0:00:02]}  Re2+ {[%clk 0:00:12]} 37. Kf1 {[%clk 0:00:02]}  Rxa2 {[%clk 0:00:12]} 38. Rd7 {[%clk 0:00:02]}  g5 {[%clk 0:00:07]} 39. Rxb7 {[%clk 0:00:00]}  e4 {[%clk 0:00:08]} 0-1

[Event "December 19 Early 2023"]
[Site "https://www.chess.com"]
[Date "2023.12.19"]
[Round "7"]
[White "Arabidze, Meri"]
[Black "Bernadskiy, Vitaliy"]
[Result "1-0"]
[Board "28"]
[TimeControl "180+1"]
[WhiteFideId "13604040"]
[BlackFideId "14100371"]
[WhiteElo "2416"]
[BlackElo "2494"]
[WhiteTeam "GEO"]
[BlackTeam "UKR"]
[WhiteClock "0:00:21"]
[BlackClock "0:00:19"]

1. Nf3 {[%clk 0:03:00]}  g6 {[%clk 0:02:54]} 2. c4 {[%clk 0:03:01]}  a6 {[%clk 0:02:53]} 3. Nc3 {[%clk 0:02:58]}  c5 {[%clk 0:02:52]} 4. g3 {[%clk 0:02:57]}  b6 {[%clk 0:02:51]} 5. Bg2 {[%clk 0:02:57]}  Bb7 {[%clk 0:02:51]} 6. O-O {[%clk 0:02:58]}  d6 {[%clk 0:02:52]} 7. e4 {[%clk 0:02:55]}  Bg7 {[%clk 0:02:49]} 8. d4 {[%clk 0:02:55]}  cxd4 {[%clk 0:02:49]} 9. Nxd4 {[%clk 0:02:56]}  Nd7 {[%clk 0:02:48]} 10. Be3 {[%clk 0:02:53]}  Rc8 {[%clk 0:02:47]} 11. Qe2 {[%clk 0:02:37]}  h5 {[%clk 0:02:45]} 12. h3 {[%clk 0:02:31]}  Ne5 {[%clk 0:02:31]} 13. b3 {[%clk 0:02:31]}  h4 {[%clk 0:02:26]} 14. g4 {[%clk 0:02:26]}  Nf6 {[%clk 0:02:25]} 15. f4 {[%clk 0:02:20]}  Nc6 {[%clk 0:02:11]} 16. Rad1 {[%clk 0:02:20]}  Nd7 {[%clk 0:02:10]} 17. Nxc6 {[%clk 0:01:51]}  Bxc6 {[%clk 0:02:08]} 18. Nd5 {[%clk 0:01:52]}  O-O {[%clk 0:01:54]} 19. e5 {[%clk 0:01:42]}  e6 {[%clk 0:01:44]} 20. Nxb6 {[%clk 0:01:17]}  Bxg2 {[%clk 0:01:44]} 21. Qxg2 {[%clk 0:01:15]}  Nxb6 {[%clk 0:01:32]} 22. Rxd6 {[%clk 0:01:15]}  Nd7 {[%clk 0:01:33]} 23. Rfd1 {[%clk 0:01:15]}  Rc7 {[%clk 0:01:28]} 24. Bb6 {[%clk 0:01:13]}  g5 {[%clk 0:01:01]} 25. Bxc7 {[%clk 0:01:03]}  Qxc7 {[%clk 0:01:02]} 26. Rxd7 {[%clk 0:01:04]}  Qa5 {[%clk 0:01:02]} 27. Qd2 {[%clk 0:00:49]}  Qc5+ {[%clk 0:01:01]} 28. Qd4 {[%clk 0:00:49]}  Qa3 {[%clk 0:01:01]} 29. f5 {[%clk 0:00:46]}  Re8 {[%clk 0:00:43]} 30. f6 {[%clk 0:00:44]}  Bf8 {[%clk 0:00:43]} 31. Qd2 {[%clk 0:00:41]}  Qc5+ {[%clk 0:00:39]} 32. Qd4 {[%clk 0:00:32]}  Qc6 {[%clk 0:00:38]} 33. Rd8 {[%clk 0:00:24]}  Rxd8 {[%clk 0:00:27]} 34. Qxd8 {[%clk 0:00:24]}  Qc5+ {[%clk 0:00:28]} 35. Kg2 {[%clk 0:00:22]}  Qxe5 {[%clk 0:00:19]} 36. Qxf8+ {[%clk 0:00:21]} 1-0

[Event "December 19 Early 2023"]
[Site "https://www.chess.com"]
[Date "2023.12.19"]
[Round "7"]
[White "Koellner, Ruben Gideon"]
[Black "Kravtsiv, Martyn"]
[Result "0-1"]
[Board "29"]
[TimeControl "180+1"]
[WhiteFideId "12993093"]
[BlackFideId "14113147"]
[WhiteElo "2347"]
[BlackElo "2689"]
[WhiteTeam "GER"]
[BlackTeam "UKR"]
[WhiteClock "0:00:00"]
[BlackClock "0:00:29"]

1. d4 {[%clk 0:03:00]}  e6 {[%clk 0:02:58]} 2. Nf3 {[%clk 0:02:59]}  Nf6 {[%clk 0:02:58]} 3. Nbd2 {[%clk 0:02:59]}  c5 {[%clk 0:02:58]} 4. e3 {[%clk 0:02:59]}  b6 {[%clk 0:02:58]} 5. c3 {[%clk 0:02:59]}  Bb7 {[%clk 0:02:59]} 6. Bd3 {[%clk 0:02:59]}  Be7 {[%clk 0:02:57]} 7. O-O {[%clk 0:02:59]}  O-O {[%clk 0:02:57]} 8. e4 {[%clk 0:02:56]}  d6 {[%clk 0:02:55]} 9. Qe2 {[%clk 0:02:55]}  Nbd7 {[%clk 0:02:52]} 10. Rd1 {[%clk 0:02:54]}  Qc7 {[%clk 0:02:38]} 11. Nf1 {[%clk 0:02:54]}  e5 {[%clk 0:02:36]} 12. d5 {[%clk 0:02:53]}  Rfe8 {[%clk 0:02:35]} 13. Ne3 {[%clk 0:02:50]}  Bf8 {[%clk 0:02:35]} 14. a4 {[%clk 0:02:49]}  g6 {[%clk 0:02:34]} 15. g3 {[%clk 0:02:20]}  Bg7 {[%clk 0:02:34]} 16. Nd2 {[%clk 0:02:17]}  Rad8 {[%clk 0:02:25]} 17. b4 {[%clk 0:02:16]}  Nb8 {[%clk 0:02:24]} 18. Ndc4 {[%clk 0:02:04]}  Bc8 {[%clk 0:02:22]} 19. Na3 {[%clk 0:02:04]}  Nh5 {[%clk 0:02:18]} 20. a5 {[%clk 0:01:58]}  Nf4 {[%clk 0:02:16]} 21. gxf4 {[%clk 0:01:47]}  exf4 {[%clk 0:02:16]} 22. Nec4 {[%clk 0:01:40]}  cxb4 {[%clk 0:02:10]} 23. Nb5 {[%clk 0:01:39]}  Qe7 {[%clk 0:01:57]} 24. Nbxd6 {[%clk 0:01:27]}  Rxd6 {[%clk 0:01:55]} 25. Bxf4 {[%clk 0:01:15]}  Rdd8 {[%clk 0:01:47]} 26. Bxb8 {[%clk 0:01:14]}  Bxc3 {[%clk 0:01:46]} 27. Rac1 {[%clk 0:01:06]}  Rxd5 {[%clk 0:01:30]} 28. exd5 {[%clk 0:01:00]}  Qg5+ {[%clk 0:01:30]} 29. Bg3 {[%clk 0:00:57]}  Rxe2 {[%clk 0:01:31]} 30. Bxe2 {[%clk 0:00:58]}  bxa5 {[%clk 0:01:28]} 31. Nxa5 {[%clk 0:00:51]}  h5 {[%clk 0:01:27]} 32. h4 {[%clk 0:00:50]}  Qf6 {[%clk 0:01:27]} 33. d6 {[%clk 0:00:46]}  Bd7 {[%clk 0:01:25]} 34. Bf1 {[%clk 0:00:40]}  g5 {[%clk 0:01:22]} 35. Bg2 {[%clk 0:00:18]}  gxh4 {[%clk 0:01:22]} 36. Bh2 {[%clk 0:00:18]}  Qg5 {[%clk 0:01:20]} 37. Kh1 {[%clk 0:00:18]}  Qxa5 {[%clk 0:01:19]} 38. Rg1 {[%clk 0:00:15]}  Kh8 {[%clk 0:00:57]} 39. Rcd1 {[%clk 0:00:15]}  b3 {[%clk 0:00:54]} 40. Rd5 {[%clk 0:00:15]}  Qb4 {[%clk 0:00:46]} 41. Rxh5+ {[%clk 0:00:15]}  Kg7 {[%clk 0:00:46]} 42. Bc6+ {[%clk 0:00:06]}  Bg4 {[%clk 0:00:46]} 43. f3 {[%clk 0:00:04]}  b2 {[%clk 0:00:46]} 44. Rxg4+ {[%clk 0:00:05]}  Qxg4 {[%clk 0:00:45]} 45. fxg4 {[%clk 0:00:03]}  b1=Q+ {[%clk 0:00:45]} 46. Kg2 {[%clk 0:00:04]}  Qc2+ {[%clk 0:00:45]} 47. Kh3 {[%clk 0:00:05]}  Bf6 {[%clk 0:00:44]} 48. g5 {[%clk 0:00:04]}  Qxc6 {[%clk 0:00:43]} 49. gxf6+ {[%clk 0:00:04]}  Kg6 {[%clk 0:00:40]} 50. Rxh4 {[%clk 0:00:04]}  Qf3+ {[%clk 0:00:37]} 51. Bg3 {[%clk 0:00:05]}  Qh1+ {[%clk 0:00:37]} 52. Kg4 {[%clk 0:00:05]}  Qd1+ {[%clk 0:00:34]} 53. Kh3 {[%clk 0:00:06]}  a5 {[%clk 0:00:34]} 54. Rg4+ {[%clk 0:00:04]}  Kxf6 {[%clk 0:00:34]} 55. Rf4+ {[%clk 0:00:03]}  Ke6 {[%clk 0:00:34]} 56. Rh4 {[%clk 0:00:02]}  a4 {[%clk 0:00:32]} 57. Rh6+ {[%clk 0:00:02]}  f6 {[%clk 0:00:32]} 58. Rh7 {[%clk 0:00:02]}  Qh1+ {[%clk 0:00:30]} 59. Bh2 {[%clk 0:00:02]}  Qf1+ {[%clk 0:00:30]} 60. Kh4 {[%clk 0:00:01]}  Qc4+ {[%clk 0:00:29]} 61. Kh3 {[%clk 0:00:01]}  Qd3+ {[%clk 0:00:29]} 62. Bg3 {[%clk 0:00:01]}  Qxh7+ {[%clk 0:00:30]} 63. Kg2 {[%clk 0:00:00]}  Qd7 {[%clk 0:00:29]} 0-1